bitfinex/quotes_ETHUSD_20240721
["timestamp","ask_amount","ask_price","bid_price","bid_amount"]
[1721570383906,0.98030146,3497.8,3497.7,2.85896]
[1721570384099,0.68069823,3497.8,3497.7,2.85896]
[1721570384303,0.08156423,3497.8,3497.7,2.85896]
[1721570385991,0.08156423,3497.8,3497.3,2.377]
[1721570385992,1.19816324,3497.8,3497.3,2.377]
[1721570386195,0.59926585,3497.5,3497.1,2.85949]
[1721570386398,0.89889878,3497.7,3497.3,2.8593]
[1721570386399,0.59926585,3497.4,3497.3,2.8593]
[1721570386624,0.08146674,3497.4,3497.3,2.8593]
[1721570386912,0.68077291,3497.4,3497.3,2.8593]
[1721570388613,0.68077291,3497.4,3497.2,2.85942]
[1721570388910,0.59931574,3497.3,3497.2,2.85942]
[1721570389093,0.98036552,3497.4,3497.2,2.85942]
[1721570389300,0.29932017,3497.3,3497.0,2.85957]
[1721570389613,0.5993072,3497.1,3496.8,2.85973]
[1721570389787,0.5993072,3497.1,3497.0,2.85959]
[1721570391621,0.5993072,3497.2,3497.1,5.71902]
[1721570391775,0.5993072,3497.3,3497.2,2.85943]
[1721570392184,0.5993072,3497.3,3497.2,5.71886]
[1721570392438,0.5993072,3497.4,3497.3,5.71868]
[1721570393492,0.5993072,3497.5,3497.4,5.71852]
[1721570393909,0.5993072,3497.6,3497.5,2.85918]
[1721570394131,0.5993072,3497.6,3497.1,2.377]
[1721570394132,0.89889878,3497.6,3497.1,2.377]
[1721570394336,1.19831631,3497.8,3497.4,2.85924]
[1721570394337,0.89888612,3497.5,3497.4,2.85924]
[1721570394621,1.19831631,3497.6,3497.1,2.377]
[1721570394788,0.59929221,3497.2,3497.1,5.23651]
[1721570397632,0.59929221,3497.2,3497.1,8.905629]
[1721570397847,0.59929221,3497.4,3497.3,2.85934]
[1721570399850,0.89893832,3497.5,3497.3,2.85934]
[1721570400442,0.89893832,3497.5,3497.4,2.85926]
[1721570400971,0.89893832,3497.5,3497.2,2.85938]
[1721570401131,1.19831631,3497.7,3497.3,2.85934]
[1721570401132,0.89897995,3497.4,3497.3,2.85934]
[1721570401875,1.19831631,3497.5,3496.8,2.3509]
[1721570401876,1.19831631,3497.5,3496.9,2.85965]
[1721570402074,0.59931308,3497.2,3497.1,2.85951]
[1721570402771,0.59931308,3497.3,3497.2,5.71886]
[1721570402926,0.59931308,3497.4,3497.3,2.85934]
[1721570403529,1.19831631,3497.5,3496.9,2.85967]
[1721570403727,0.59930204,3497.1,3496.8,2.85975]
[1721570403931,0.59930204,3497.0,3496.8,2.85975]
[1721570404160,0.59930204,3496.9,3496.8,2.85975]
[1721570404366,0.59930204,3497.0,3496.7,2.85982]
[1721570404668,0.59930204,3497.0,3496.9,2.85967]
[1721570405374,0.59930204,3497.1,3497.0,2.85959]
[1721570405870,0.89895306,3497.2,3497.0,2.85959]
[1721570406347,0.89895306,3497.2,3496.8,2.85973]
[1721570406547,0.59915564,3497.0,3496.8,2.85973]
[1721570407584,0.59915564,3496.9,3496.8,2.85973]
[1721570407767,0.89895306,3497.1,3496.4,2.86007]
[1721570407768,1.19831631,3497.0,3496.4,2.86007]
[1721570407980,0.59916318,3496.6,3496.2,5.1211]
[1721570409073,0.59916318,3496.5,3496.2,2.8602]
[1721570409479,0.59916318,3496.6,3496.2,2.8602]
[1721570409747,0.59916318,3496.6,3496.3,2.86015]
[1721570409941,0.59916318,3496.6,3496.4,2.86008]
[1721570410144,0.59916318,3496.7,3496.5,2.86]
[1721570410350,0.59916318,3496.7,3496.6,2.85992]
[1721570410551,0.59916318,3496.8,3496.7,2.85983]
[1721570411049,0.59916318,3496.9,3496.8,5.7195]
[1721570411250,0.59916318,3497.2,3497.0,2.85959]
[1721570411480,0.59916318,3497.1,3496.8,5.12065]
[1721570411784,0.59916318,3497.1,3496.9,2.85966]
[1721570412370,0.59916318,3497.1,3497.0,2.85959]
[1721570412670,0.59872317,3497.1,3497.0,2.85959]
[1721570414355,0.89874477,3497.2,3497.0,2.85959]
[1721570414568,0.89874477,3497.2,3497.1,2.85951]
[1721570414776,7.48,3497.5,3497.1,2.85951]
[1721570414777,0.89874477,3497.3,3497.1,2.85951]
[1721570415501,0.89874477,3497.2,3497.1,2.85951]
[1721570416574,0.89874477,3497.3,3497.2,2.85943]
[1721570416766,0.89869531,3497.3,3497.2,2.85943]
[1721570417598,0.08130001,3497.3,3497.2,2.85943]
[1721570417909,0.68042869,3497.3,3497.2,2.85943]
[1721570418070,0.68042742,3497.3,3497.2,2.85943]
[1721570418267,0.08130001,3497.3,3497.2,6.290754]
[1721570418503,0.08130001,3497.3,3497.2,8.735354]
[1721570419423,0.08130001,3497.3,3497.2,11.594784]
[1721570419586,0.59912741,3497.9,3497.8,2.85893]
[1721570419769,0.6804603,3497.9,3497.8,2.85893]
[1721570420117,0.6804603,3497.9,3497.8,5.71786]
[1721570420467,0.68037117,3497.9,3497.8,5.71786]
[1721570420997,0.08133289,3497.9,3497.8,8.734246]
[1721570421298,0.59903828,3498.2,3498.1,2.85869]
[1721570421475,0.59903828,3498.2,3498.1,5.71738]
[1721570422421,0.59903828,3498.2,3498.1,2.85869]
[1721570422640,0.89869531,3498.2,3497.9,2.85885]
[1721570422797,0.59887589,3498.0,3497.9,2.85885]
[1721570423727,0.59887589,3498.1,3498.0,2.85877]
[1721570424797,0.89869531,3498.3,3498.0,2.85877]
[1721570424798,0.59887589,3498.2,3498.0,2.85877]
[1721570425202,0.59887589,3498.1,3498.0,2.85877]
[1721570426026,0.59887589,3498.2,3498.1,2.85869]
[1721570426325,7.48,3498.5,3498.4,2.85844]
[1721570426714,8.0786888,3498.5,3498.4,2.85844]
[1721570427695,7.48,3498.5,3498.4,2.85844]
[1721570427885,0.59861016,3498.6,3498.5,5.71672]
[1721570428109,0.59861016,3498.7,3498.6,2.85828]
[1721570428308,0.59861016,3498.8,3498.7,2.8582]
[1721570429122,0.89869531,3499.0,3498.8,2.85812]
[1721570429337,0.59827354,3498.9,3498.8,2.85812]
[1721570429944,0.67992718,3498.9,3498.8,2.85812]
[1721570431347,0.08165364,3498.9,3498.8,2.85812]
[1721570434753,0.59827354,3499.1,3498.8,2.85812]
[1721570434917,0.08167677,3498.9,3498.8,2.85812]
[1721570435404,1.61580206,3499.1,3498.8,2.85812]
[1721570435608,0.08169151,3499.0,3498.8,2.85812]
[1721570437311,0.08169151,3499.0,3498.6,2.85827]
[1721570437646,0.08169151,3499.0,3498.4,5.32654]
[1721570437647,0.67996505,3499.0,3498.4,5.32654]
[1721570437811,0.67996505,3499.0,3498.4,2.85844]
[1721570437812,0.7680229,3498.9,3498.4,2.85844]
[1721570438120,0.08166204,3498.8,3498.5,2.85836]
[1721570438322,0.08166204,3498.8,3498.3,2.85852]
[1721570438522,0.95652646,3498.8,3498.1,2.85868]
[1721570438842,0.59827354,3498.7,3498.0,2.85873]
[1721570439015,0.08170969,3498.6,3498.1,2.85868]
[1721570439217,0.67998323,3498.6,3498.1,2.85868]
[1721570439909,0.67998323,3498.6,3497.9,2.85884]
[1721570440111,0.59827354,3498.3,3497.5,2.85912]
[1721570440351,0.59827354,3498.1,3497.5,2.85912]
[1721570440710,0.08165909,3498.2,3497.5,2.85912]
[1721570440711,0.67990314,3498.0,3497.5,2.85912]
[1721570441254,0.67990314,3498.0,3497.6,2.85908]
[1721570442059,0.0816296,3498.0,3497.7,2.85901]
[1721570442922,3.31369531,3498.4,3497.7,2.85901]
[1721570442923,0.59827354,3498.1,3497.7,2.85901]
[1721570443129,0.08144447,3497.9,3497.7,2.85901]
[1721570443350,0.59827354,3498.2,3497.7,2.85901]
[1721570443551,0.08142973,3497.8,3497.5,2.85912]
[1721570443754,0.59827354,3498.0,3497.5,2.85912]
[1721570443916,0.08141498,3497.7,3497.5,2.85912]
[1721570444113,0.59827354,3498.0,3497.5,2.85912]
[1721570444318,0.08140023,3497.6,3497.5,2.85912]
[1721570444565,0.90692175,3498.0,3497.5,2.85912]
[1721570445049,0.08141447,3497.9,3497.5,2.85912]
[1721570446251,0.67968801,3497.9,3497.5,2.85912]
[1721570446413,0.08141447,3497.9,3497.5,2.85912]
[1721570446619,0.08141447,3497.9,3497.6,2.85908]
[1721570447145,0.59827354,3498.0,3497.6,2.85908]
[1721570447314,0.08138851,3497.8,3497.6,2.85908]
[1721570447515,0.59827354,3498.0,3497.6,2.85908]
[1721570447717,0.08137377,3497.7,3497.6,2.85908]
[1721570447918,0.59827354,3498.0,3497.6,2.85908]
[1721570448220,0.0813735,3497.7,3497.6,2.85908]
[1721570448426,0.59827354,3498.0,3497.6,2.85908]
[1721570448627,0.08140659,3497.9,3497.6,2.85908]
[1721570449486,0.08140659,3497.9,3497.5,2.85915]
[1721570450455,0.67968013,3497.9,3497.5,2.85915]
[1721570451242,0.08140659,3497.9,3497.5,2.85915]
[1721570451575,0.67968013,3497.9,3497.5,2.85915]
[1721570452232,0.08140659,3497.9,3497.5,2.85915]
[1721570452425,0.67968013,3497.9,3497.5,2.85915]
[1721570452645,0.67968013,3497.9,3497.4,2.402]
[1721570452945,0.59827354,3497.8,3497.4,2.402]
[1721570453270,0.08136178,3497.7,3497.4,2.402]
[1721570453744,0.59827354,3497.9,3497.4,5.26126]
[1721570454241,0.67965007,3497.8,3497.4,5.26126]
[1721570456233,0.59827354,3497.7,3497.4,5.26126]
[1721570456434,0.0813473,3497.6,3497.4,5.26126]
[1721570456668,0.59827354,3497.8,3497.4,5.26126]
[1721570456830,0.08136178,3497.7,3497.4,5.26126]
[1721570457031,0.59827354,3497.8,3497.4,5.26126]
[1721570457268,0.67963532,3497.7,3497.4,5.26126]
[1721570459234,0.08136178,3497.7,3497.4,2.402]
[1721570459446,0.59827354,3497.9,3497.6,2.85902]
[1721570459734,0.08137365,3497.8,3497.6,2.85903]
[1721570461378,0.67964719,3497.8,3497.6,2.85903]
[1721570463609,0.59827354,3497.7,3497.6,2.85903]
[1721570463774,0.67964719,3497.8,3497.6,2.85903]
[1721570463976,0.08135476,3497.7,3497.4,5.26119]
[1721570464293,0.59827354,3497.6,3497.4,2.85919]
[1721570464489,0.67959246,3497.6,3497.4,2.85919]
[1721570467635,0.59827354,3497.5,3497.4,2.85919]
[1721570467907,0.08129391,3497.5,3497.4,2.85919]
[1721570479754,0.08129391,3497.5,3497.4,6.08161349]
[1721570480318,0.08129391,3497.5,3497.4,8.45621349]
[1721570480523,0.08129391,3497.5,3497.4,9.00621349]
[1721570480720,0.59827354,3497.8,3497.4,9.00621349]
[1721570480721,0.59827354,3497.8,3497.7,5.71804]
[1721570480942,0.59827354,3497.8,3497.4,3.77235349]
[1721570480943,0.59827354,3497.9,3497.8,8.09246]
[1721570481260,0.89869531,3498.0,3497.9,2.85885]
[1721570481761,8.67831631,3498.2,3498.0,2.85877]
[1721570481762,0.89869531,3498.1,3498.0,2.85877]
[1721570482348,8.67831631,3498.2,3498.1,2.85869]
[1721570483068,7.48,3498.2,3498.1,2.85869]
[1721570483224,8.67831631,3498.2,3498.1,2.85869]
[1721570483767,4.14364156,3498.4,3497.6,2.85908]
[1721570483947,0.90000676,3497.8,3497.6,2.85908]
[1721570484148,1.20000902,3497.9,3496.8,5.23431]
[1721570484149,1.20000902,3497.7,3496.8,5.23431]
[1721570484349,1.20000902,3497.7,3497.4,2.85926]
[1721570484350,0.90003272,3497.5,3497.4,2.85926]
[1721570485339,1.20000902,3497.6,3497.5,2.85918]
[1721570485769,1.20000902,3497.6,3497.5,5.71836]
[1721570485925,0.90054449,3497.6,3497.5,8.664796]
[1721570486140,0.90054449,3497.7,3497.6,5.7182]
[1721570486656,0.90054449,3497.8,3497.7,5.71804]
[1721570486845,7.48,3498.2,3497.8,2.3746]
[1721570486846,1.20000902,3498.0,3497.8,2.3746]
[1721570487184,1.20000902,3498.0,3497.9,5.95516]
[1721570487185,0.90044714,3498.0,3497.9,5.95516]
[1721570487399,8.68000902,3498.2,3498.0,5.71754]
[1721570487400,0.90044714,3498.1,3498.0,5.71754]
[1721570487587,7.48,3498.2,3497.9,0.23746]
[1721570487588,8.38044714,3498.2,3498.1,5.71738]
[1721570487885,7.48,3498.2,3498.1,5.71738]
[1721570488081,8.38044714,3498.2,3498.1,5.71738]
[1721570488656,7.48,3498.2,3498.1,5.71738]
[1721570489468,8.07974839,3498.2,3498.1,5.71738]
[1721570489663,0.68119685,3498.2,3498.1,8.09198]
[1721570489994,0.68119685,3498.2,3498.1,8.924924]
[1721570490660,0.08144846,3498.2,3498.1,8.924924]
[1721570490858,0.59974839,3498.3,3498.2,5.71722]
[1721570491291,0.68121675,3498.3,3498.2,5.71722]
[1721570491858,0.59974839,3498.3,3498.2,5.71722]
[1721570492267,0.6812219,3498.3,3498.2,5.71722]
[1721570494421,0.08147351,3498.3,3498.2,5.71722]
[1721570494623,0.6812219,3498.3,3498.2,5.71722]
[1721570494792,0.90044714,3498.5,3498.2,2.85861]
[1721570494989,0.59921059,3498.4,3498.3,2.85853]
[1721570495417,0.90044714,3498.5,3498.3,2.85853]
[1721570495729,0.90044714,3498.5,3498.4,2.85844]
[1721570502857,0.90044714,3498.5,3498.2,2.85861]
[1721570503029,0.59895439,3498.3,3498.2,2.85861]
[1721570504822,0.67769294,3498.3,3498.2,2.85861]
[1721570505017,0.59895439,3498.3,3498.2,2.85861]
[1721570505218,0.67769294,3498.3,3498.2,2.85861]
[1721570505618,0.67769294,3498.3,3498.0,2.85877]
[1721570505862,0.59895439,3498.2,3497.9,2.85883]
[1721570506155,0.67766107,3498.1,3497.9,2.85883]
[1721570506371,0.59895439,3498.0,3497.9,2.85883]
[1721570506671,0.67766107,3498.1,3497.9,2.85883]
[1721570506874,0.67763085,3498.0,3497.9,2.85883]
[1721570507274,0.67763085,3498.0,3497.7,2.85901]
[1721570507275,0.9791236,3498.0,3497.7,2.85901]
[1721570507486,0.59907649,3497.8,3497.7,2.85901]
[1721570507780,0.07868656,3497.8,3497.7,2.85901]
[1721570508371,0.59907649,3497.9,3497.7,2.85901]
[1721570508541,0.0786814,3497.8,3497.7,2.85901]
[1721570513481,0.0786814,3497.8,3497.7,8.768697]
[1721570513689,0.0786814,3497.8,3497.7,9.318697]
[1721570513849,0.59907649,3498.3,3497.7,1.347167]
[1721570514049,0.59907649,3498.3,3497.8,2.8035]
[1721570514492,0.59907649,3498.3,3498.2,5.11211]
[1721570517146,0.59907649,3498.3,3498.2,2.85861]
[1721570517371,0.90044714,3498.4,3498.2,2.85861]
[1721570517581,0.90044714,3498.3,3498.2,2.85861]
[1721570519752,0.97919971,3498.3,3498.2,2.85861]
[1721570522551,0.97824496,3498.3,3498.2,2.85861]
[1721570523495,0.07875257,3498.3,3498.2,2.85861]
[1721570524958,1.27876159,3498.3,3498.0,5.30797]
[1721570525157,0.89975845,3498.2,3498.1,2.85869]
[1721570525563,0.07871724,3498.2,3498.1,2.85869]
[1721570526065,1.20000902,3498.3,3498.0,5.30797]
[1721570526284,0.8998877,3498.1,3498.0,5.30797]
[1721570526681,0.97859535,3498.1,3498.0,5.30797]
[1721570529397,0.8998877,3498.1,3498.0,5.30797]
[1721570529764,0.97861082,3498.1,3498.0,5.30797]
[1721570532500,0.97861082,3498.1,3497.8,2.85893]
[1721570532501,0.07872312,3498.1,3497.8,2.85893]
[1721570532699,0.90042654,3497.9,3497.6,2.85905]
[1721570532866,0.90042654,3497.8,3497.6,2.85905]
[1721570533060,0.90042654,3497.7,3497.6,2.85905]
[1721570533265,0.90042654,3497.7,3497.5,2.4492]
[1721570533608,0.9790812,3497.7,3497.5,2.4492]
[1721570534115,0.90042654,3497.6,3497.2,2.4492]
[1721570534259,0.90049732,3497.4,3497.2,5.30862]
[1721570534706,0.07599367,3497.3,3497.2,5.30862]
[1721570535290,0.97649099,3497.3,3497.2,5.30862]
[1721570535604,0.07599367,3497.3,3497.2,5.30862]
[1721570538181,0.07599367,3497.3,3497.1,2.85948]
[1721570538380,0.59982368,3497.2,3497.1,2.85948]
[1721570538581,0.67575598,3497.2,3497.1,2.85948]
[1721570539115,0.0759323,3497.2,3497.1,2.85948]
[1721570539482,0.59972343,3497.2,3497.1,2.85948]
[1721570539683,0.67564903,3497.2,3497.1,2.85948]
[1721570541954,0.0759256,3497.2,3497.1,2.85948]
[1721570542219,0.59943061,3497.2,3497.1,2.85948]
[1721570542514,0.67534785,3497.2,3497.1,2.85948]
[1721570542723,0.67534785,3497.2,3496.9,5.21676]
[1721570543110,0.59943061,3497.1,3496.9,5.21676]
[1721570543544,0.07589122,3497.0,3496.9,5.21676]
[1721570543995,0.59943061,3497.2,3496.9,5.21676]
[1721570544178,0.07587853,3497.0,3496.9,5.21676]
[1721570544382,0.59943061,3497.2,3496.9,5.21676]
[1721570544699,0.07588369,3497.0,3496.9,5.21676]
[1721570545021,0.07581092,3497.0,3496.9,5.21676]
[1721570546112,0.59943061,3497.2,3496.9,5.21676]
[1721570546284,0.07408246,3497.0,3496.9,5.21676]
[1721570546480,0.59943061,3497.2,3496.9,5.21676]
[1721570546681,0.07408888,3497.0,3496.9,5.21676]
[1721570546887,0.59943061,3497.2,3496.9,5.21676]
[1721570547188,0.59943061,3497.3,3497.1,2.85951]
[1721570547391,0.59943061,3497.5,3497.4,2.85926]
[1721570547806,0.59943061,3497.6,3497.5,2.85918]
[1721570548188,8.07943061,3497.7,3497.6,5.2162]
[1721570548392,0.59943061,3497.7,3497.6,5.2162]
[1721570549807,0.67363993,3497.7,3497.6,5.2162]
[1721570550411,0.07420932,3497.7,3497.6,5.2162]
[1721570550718,0.90049732,3497.8,3497.4,2.85926]
[1721570550889,0.90049732,3497.6,3497.4,2.85926]
[1721570551088,0.5990628,3497.5,3497.4,2.85926]
[1721570551290,0.67325531,3497.5,3497.4,2.85926]
[1721570552229,0.97468983,3497.5,3497.2,2.85937]
[1721570552528,0.89867203,3497.4,3497.2,2.85937]
[1721570552830,0.97284536,3497.3,3497.2,2.85937]
[1721570553135,0.07417333,3497.3,3497.2,2.85937]
[1721570553927,0.67318331,3497.3,3497.2,2.85937]
[1721570554788,0.07417333,3497.3,3497.2,2.85937]
[1721570559222,0.67318331,3497.3,3497.2,2.85937]
[1721570559949,0.67318331,3497.3,3497.0,2.85958]
[1721570560327,1.18201975,3497.3,3497.0,2.85958]
[1721570561141,1.18201975,3497.3,3496.8,2.85971]
[1721570562049,1.18201975,3497.3,3496.9,2.85965]
[1721570562450,1.18201975,3497.3,3496.8,2.85975]
[1721570562629,1.18201975,3497.3,3496.8,2.85974]
[1721570562630,0.67318331,3497.3,3496.8,2.85974]
[1721570562829,0.67318331,3497.3,3497.1,2.85949]
[1721570564129,0.67318331,3497.3,3497.2,2.85943]
[1721570564741,0.67318331,3497.3,3497.0,2.85955]
[1721570569200,2.98968331,3497.3,3497.0,2.85955]
[1721570569571,0.59900998,3497.1,3497.0,2.85955]
[1721570569782,0.67310596,3497.1,3497.0,2.85955]
[1721570570993,0.07409598,3497.1,3497.0,8.07884]
[1721570571363,0.59900998,3497.4,3497.3,2.85934]
[1721570571688,0.67308534,3497.4,3497.3,2.85934]
[1721570571850,0.67329964,3497.4,3497.3,2.85934]
[1721570572050,0.97274739,3497.4,3497.3,2.85934]
[1721570574720,0.07407536,3497.4,3497.3,2.85934]
[1721570575082,0.07407536,3497.4,3497.3,5.71868]
[1721570575323,0.6736127,3497.4,3497.3,8.964018]
[1721570577314,0.6736127,3497.4,3497.3,8.15618]
[1721570577518,0.07407536,3497.4,3497.3,8.15618]
[1721570578419,0.89933644,3497.5,3497.4,5.71852]
[1721570578579,1.20000902,3497.6,3497.5,2.85918]
[1721570579519,1.49997841,3497.7,3497.6,2.8591]
[1721570579814,1.57367622,3497.7,3497.6,2.8591]
[1721570580181,1.57367622,3497.7,3497.4,2.85926]
[1721570580516,1.57367622,3497.7,3497.6,2.8591]
[1721570580883,0.07369781,3497.7,3497.6,2.8591]
[1721570581094,0.07369781,3497.7,3497.4,2.85926]
[1721570581095,1.50075226,3497.7,3497.4,2.85926]
[1721570581331,1.50075226,3497.6,3497.4,2.85926]
[1721570581614,1.50075226,3497.6,3497.3,2.4375]
[1721570581615,1.50075226,3497.6,3497.5,2.85918]
[1721570583284,1.83091776,3497.6,3497.2,2.85942]
[1721570583482,1.20071771,3497.3,3497.2,2.85942]
[1721570584115,1.20071771,3497.4,3497.3,2.85934]
[1721570584514,1.20071771,3497.5,3497.4,2.85926]
[1721570585537,1.50090074,3497.7,3497.5,2.85918]
[1721570585821,2.0602289,3497.7,3497.4,2.85926]
[1721570586035,1.20059561,3497.5,3497.4,2.85926]
[1721570587034,1.50082033,3497.5,3497.4,2.85926]
[1721570587532,1.50082033,3497.5,3497.4,8.19802]
[1721570587533,1.20061232,3497.5,3497.4,8.19802]
[1721570587699,1.20061232,3497.6,3497.5,5.71836]
[1721570591448,1.20061232,3497.6,3497.5,6.538146]
[1721570591608,1.20061232,3497.7,3497.6,2.8591]
[1721570594172,1.20061232,3497.7,3497.6,5.7182]
[1721570594787,1.20061232,3497.8,3497.7,5.71804]
[1721570594987,1.50048895,3497.9,3497.8,5.71786]
[1721570594988,1.20061232,3497.9,3497.8,5.71786]
[1721570595484,1.20061232,3498.0,3497.9,5.7177]
[1721570596440,0.90005357,3498.0,3497.9,5.7177]
[1721570597868,1.20061232,3498.1,3497.9,2.85885]
[1721570598356,1.20061232,3498.1,3498.0,2.85877]
[1721570598759,1.20061232,3498.1,3497.9,2.85885]
[1721570598964,1.20061232,3498.1,3497.7,2.85901]
[1721570599180,0.89965911,3497.8,3497.7,2.85901]
[1721570599524,1.20061232,3497.9,3497.7,2.85901]
[1721570599825,1.20061232,3497.8,3497.7,2.85901]
[1721570599995,1.20061232,3497.8,3497.5,2.85917]
[1721570600344,0.89975383,3497.6,3497.5,2.85917]
[1721570600677,1.20061232,3497.7,3497.5,2.85917]
[1721570601122,1.20061232,3497.7,3497.6,2.8591]
[1721570601376,1.20061232,3497.9,3497.8,2.85893]
[1721570604681,1.20061232,3497.9,3497.6,2.85908]
[1721570604884,1.20061232,3497.8,3497.6,2.85908]
[1721570605111,0.8997243,3497.7,3497.6,2.85908]
[1721570605497,1.20061232,3497.8,3497.6,2.85908]
[1721570606018,3.85492201,3497.8,3497.2,2.85941]
[1721570606218,0.59987035,3497.3,3497.2,2.85941]
[1721570606440,0.89980553,3497.4,3497.2,2.85941]
[1721570606637,0.89980553,3497.3,3497.2,2.85941]
[1721570608622,0.89980553,3497.4,3497.2,2.85941]
[1721570609142,1.20061232,3497.5,3497.3,0.3659]
[1721570609724,0.07375269,3497.4,3497.3,0.3659]
[1721570610297,1.27436501,3497.4,3497.3,0.3659]
[1721570611984,1.27436501,3497.4,3497.2,2.85941]
[1721570612181,0.89992836,3497.3,3497.2,2.85941]
[1721570612387,1.27436501,3497.4,3497.2,2.85941]
[1721570612613,0.07373982,3497.3,3497.2,2.85941]
[1721570615113,1.27435214,3497.3,3497.2,2.85941]
[1721570615314,1.27435214,3497.3,3496.8,2.85969]
[1721570615513,0.90013907,3497.0,3496.8,2.85975]
[1721570615712,0.90013907,3497.0,3496.9,2.85967]
[1721570616141,1.20061232,3497.1,3496.9,2.85967]
[1721570617440,0.90002653,3497.0,3496.9,2.85967]
[1721570619233,0.90002653,3497.0,3496.7,5.35676]
[1721570619435,1.20061232,3497.1,3496.8,2.85975]
[1721570619436,0.90002653,3496.9,3496.8,2.85975]
[1721570620242,0.90002653,3496.9,3496.7,2.497]
[1721570620430,0.89992528,3496.8,3496.4,2.497]
[1721570620632,0.59986837,3496.7,3496.4,2.497]
[1721570621226,0.23396837,3496.7,3496.6,2.85991]
[1721570624663,0.30748618,3496.7,3496.6,2.85991]
[1721570625370,0.07351781,3496.7,3496.6,2.85991]
[1721570625874,0.89992528,3496.9,3496.6,2.85991]
[1721570626048,0.07351697,3496.7,3496.6,2.85991]
[1721570626632,0.89992528,3497.0,3496.6,2.85991]
[1721570626828,0.89992528,3496.9,3496.6,2.85991]
[1721570627073,0.89992528,3496.9,3496.7,2.85982]
[1721570627074,0.97347935,3496.9,3496.7,2.85982]
[1721570627255,0.07355407,3496.9,3496.8,2.85975]
[1721570627776,0.89992528,3497.2,3496.9,2.85964]
[1721570628292,0.89992528,3497.2,3497.0,2.85955]
[1721570630554,0.89992528,3497.1,3497.0,2.85955]
[1721570630961,1.20061232,3497.3,3497.0,2.85955]
[1721570630962,0.89992528,3497.2,3497.0,2.85955]
[1721570631572,0.89992528,3497.2,3496.7,2.85982]
[1721570631775,0.59933928,3497.0,3496.7,3.395502]
[1721570632865,0.59933928,3497.0,3496.9,2.85966]
[1721570636747,0.59933928,3497.1,3496.9,2.85966]
[1721570638284,0.89992528,3497.2,3496.9,2.85966]
[1721570638285,0.59933928,3497.0,3496.9,2.85966]
[1721570639763,0.67288038,3497.0,3496.9,2.85966]
[1721570643087,0.0735411,3497.0,3496.9,2.85966]
[1721570643290,0.67308064,3497.0,3496.9,2.85966]
[1721570643492,0.0735411,3497.0,3496.9,2.85966]
[1721570643688,0.97346638,3497.0,3496.9,2.85966]
[1721570645500,0.0735411,3497.0,3496.7,0.535682]
[1721570645696,0.89980911,3496.9,3496.6,5.35691]
[1721570645895,0.5998735,3496.7,3496.6,5.35691]
[1721570646140,0.67340953,3496.7,3496.6,5.35691]
[1721570646720,0.67340953,3496.7,3496.4,2.86]
[1721570646928,0.5998735,3496.5,3496.4,2.86]
[1721570647308,0.0734863,3496.5,3495.9,2.4846]
[1721570647521,0.0734863,3496.5,3496.2,2.86018]
[1721570647522,0.59997545,3496.3,3496.2,2.86018]
[1721570647721,0.6734116,3496.3,3496.2,2.86018]
[1721570648746,0.07343615,3496.3,3496.2,2.86018]
[1721570649517,0.67346996,3496.3,3496.2,2.86018]
[1721570650051,0.07343615,3496.3,3496.2,2.86018]
[1721570650723,0.67351442,3496.3,3496.2,2.86018]
[1721570651055,0.67351475,3496.3,3496.2,2.86018]
[1721570651356,0.07343615,3496.3,3496.2,2.86018]
[1721570652253,0.07343615,3496.3,3496.0,2.86039]
[1721570652460,0.60008336,3496.2,3496.0,2.86039]
[1721570652836,0.07331344,3496.1,3496.0,2.86039]
[1721570653038,0.07331344,3496.1,3495.8,2.86052]
[1721570653234,0.6733968,3496.1,3495.9,2.86047]
[1721570655061,0.6733968,3496.1,3495.8,2.86056]
[1721570655444,0.6733968,3496.1,3495.6,2.86072]
[1721570655445,0.60008336,3496.0,3495.6,2.86072]
[1721570656030,0.07327995,3495.9,3495.6,2.86072]
[1721570656736,0.07327995,3495.9,3495.4,5.17399]
[1721570656737,0.60008336,3496.1,3495.7,2.86063]
[1721570656943,0.07326557,3496.0,3495.7,2.86063]
[1721570659725,0.67334893,3496.0,3495.5,2.86081]
[1721570660067,0.60008336,3495.9,3495.5,2.86081]
[1721570660568,0.07295535,3495.8,3495.5,2.86081]
[1721570660860,0.07295535,3495.8,3495.3,2.86096]
[1721570660861,0.67303871,3495.8,3495.3,2.86096]
[1721570661629,0.60008336,3495.7,3495.3,2.86096]
[1721570662061,0.07312931,3495.6,3495.3,2.86096]
[1721570662429,0.60008336,3495.8,3495.3,2.86096]
[1721570662629,0.07300009,3495.5,3495.3,2.86096]
[1721570662829,0.60008336,3495.7,3495.3,2.86096]
[1721570663071,0.07321536,3495.4,3495.3,2.86096]
[1721570663268,0.60008336,3495.7,3495.3,2.86096]
[1721570663780,0.07300341,3495.6,3495.3,2.86096]
[1721570665485,0.07300341,3495.6,3495.1,5.17423]
[1721570665661,1.05598636,3495.6,3495.1,2.86113]
[1721570666055,0.60008336,3495.5,3495.1,2.86113]
[1721570666256,0.98298295,3495.6,3495.1,2.86113]
[1721570666489,0.07320521,3495.5,3495.1,2.86113]
[1721570667776,0.07320521,3495.5,3495.2,2.86105]
[1721570667986,0.60008336,3495.7,3495.2,2.86105]
[1721570668147,0.07317173,3495.4,3495.2,2.86105]
[1721570668352,0.60008336,3495.7,3495.2,2.86105]
[1721570668546,0.07320642,3495.6,3495.2,2.86105]
[1721570669354,0.07320642,3495.6,3495.0,2.86118]
[1721570669555,2.85618336,3495.8,3495.0,2.86118]
[1721570669556,0.60008336,3495.7,3495.0,2.86118]
[1721570669789,0.07321158,3495.6,3495.0,2.86118]
[1721570670972,0.07321158,3495.6,3495.1,2.86112]
[1721570673377,2.85618336,3495.8,3495.1,2.86112]
[1721570673573,0.07321469,3495.7,3495.1,2.86112]
[1721570673780,1.05621877,3495.7,3494.9,2.86129]
[1721570673975,0.60008336,3495.6,3494.9,2.86129]
[1721570674188,0.60008336,3495.6,3495.0,2.86121]
[1721570674370,0.67327721,3495.5,3495.0,2.86121]
[1721570674979,0.07319385,3495.5,3495.0,2.86121]
[1721570677208,2.3596,3495.4,3494.8,2.86133]
[1721570677566,0.07310773,3495.3,3494.8,2.86133]
[1721570678405,0.46636775,3495.3,3494.8,2.86133]